bitfinex-derivatives/quotes_SOLF0:USTF0_20250325
["timestamp","ask_amount","ask_price","bid_price","bid_amount"]
[1742898580674,0.05315186,142.07,142.05,0.05152879]
[1742898581563,7.0384,142.06,142.05,0.05152879]
[1742898591983,7.0384,142.06,142.05,2.879e-05]
[1742898600893,0.05315186,142.07,142.05,2.879e-05]
[1742898601986,7.09125186,142.07,142.05,7.03862879]
[1742898602186,0.05315186,142.07,142.05,2.879e-05]
[1742898602792,7.0384,142.06,142.05,2.879e-05]
[1742898602983,0.05315186,142.07,142.05,2.879e-05]
[1742898603390,7.09125186,142.07,142.05,2.879e-05]
[1742898603691,0.05315186,142.07,142.05,2.879e-05]
[1742898604093,7.0384,142.06,142.05,2.879e-05]
[1742898607389,7.0384,142.06,142.0,0.27267]
[1742898607390,7.0409,142.01,142.0,0.27267]
[1742898610996,7.0923643,142.02,142.0,0.27267]
[1742898611689,7.0409,142.01,142.0,0.27267]
[1742898620800,7.0925643,142.02,142.0,7.31407]
[1742898621001,0.0519643,142.02,142.0,0.27267]
[1742898622598,29.10755695,142.11,142.02,25.48]
[1742898623506,8.41658222,142.1,142.0,0.27267]
[1742898623707,7.0392,142.05,142.0,7.31397]
[1742898623897,0.04843298,142.06,142.04,0.05296941]
[1742898624093,7.08703298,142.06,142.01,7.0406]
[1742898624300,0.04843298,142.06,142.04,0.05397431]
[1742898625207,0.04843298,142.06,142.04,7.09307431]
[1742898626607,0.04843298,142.06,142.04,0.05397431]
[1742898626805,7.0389,142.05,142.04,0.05397431]
[1742898627497,7.0402,142.03,142.0,0.27267]
[1742898628597,7.0404,142.02,142.0,0.27267]
[1742898628798,7.0404,142.02,142.0,0.32552834]
[1742898631803,7.0409,142.01,142.0,0.32552834]
[1742898638118,7.0409,142.01,142.0,2.834e-05]
[1742898639811,22.49768222,142.02,141.91,232.22]
[1742898640113,22.49768222,142.02,141.92,25.48]
[1742898640303,7.0439,141.95,141.93,7.0447]
[1742898640502,22.49768222,142.02,141.92,25.48]
[1742898640707,8.41658222,142.05,141.92,25.48]
[1742898640904,7.0426,141.98,141.97,0.05382551]
[1742898641519,7.042,141.99,141.97,0.05382551]
[1742898642115,7.0424,141.98,141.97,0.05382551]
[1742898644915,7.0424,141.98,141.97,2.551e-05]
[1742898651231,1.22599965,142.06,142.05,25.48]
[1742898651428,41.40442851,142.08,142.05,25.48]
[1742898651835,41.40442851,142.08,142.07,7.0379]
[1742898652036,29.10755695,142.08,142.07,7.0379]
[1742898653233,0.05038334,142.09,142.08,32.5174]
[1742898656551,0.05038334,142.09,142.08,7.0374]
[1742898660347,27.16077133,142.23,142.07,25.46]
[1742898660647,7.0327,142.18,142.11,25.46]
[1742898660850,7.0327,142.18,142.13,7.0347]
[1742898661253,7.0322,142.19,142.13,7.0347]
[1742898661448,0.04673079,142.17,142.14,0.0512477]
[1742898662853,0.04673079,142.17,142.07,32.4977]
[1742898663046,13.10067133,142.21,142.07,25.46]
[1742898663448,7.0353,142.13,142.07,25.46]
[1742898663643,13.10067133,142.21,142.07,25.46]
[1742898663644,27.16007133,142.24,142.07,25.46]
[1742898663846,0.04594915,142.11,142.09,7.08386388]
[1742898664046,7.0338,142.16,142.09,7.0368]
[1742898664353,0.04807546,142.11,142.09,7.08665562]
[1742898664548,0.0498773,142.11,142.09,7.08665562]
[1742898664749,7.0338,142.16,142.09,7.08665562]
[1742898664957,27.16007133,142.24,142.1,25.46]
[1742898665150,13.10067133,142.22,142.1,25.46]
[1742898665652,7.0347,142.14,142.1,25.46]
[1742898665852,0.04437124,142.17,142.1,25.46]
[1742898666150,13.10067133,142.22,142.11,0.04854568]
[1742898666348,7.0345,142.14,142.1,25.46]
[1742898666745,27.16007133,142.24,142.11,0.04842368]
[1742898666952,0.04442553,142.13,142.1,25.46]
[1742898667146,27.16007133,142.24,142.16,2.689e-05]
[1742898667147,13.10067133,142.22,142.16,2.689e-05]
[1742898667357,14.0594,142.24,142.1,25.46]
[1742898667551,13.10067133,142.23,142.1,25.46]
[1742898667856,7.0343,142.15,142.1,25.46]
[1742898668256,15.28378209,142.24,142.1,25.46]
[1742898668448,7.0328,142.18,142.12,7.0352]
[1742898668654,7.07984697,142.18,142.16,0.05057186]
[1742898668854,7.07984697,142.18,142.13,25.46]
[1742898669053,7.07984697,142.18,142.16,0.05203244]
[1742898669351,7.0329,142.17,142.16,0.05203244]
[1742898670356,0.04704697,142.18,142.16,0.05203244]
[1742898671862,7.0329,142.17,142.16,0.05203244]
[1742898679663,7.07974697,142.18,142.16,0.05203244]
[1742898680668,14.0573,142.26,142.16,0.05203244]
[1742898680669,14.0573,142.26,142.17,25.44]
[1742898681061,14.0573,142.26,142.18,7.0324]
[1742898681761,0.05137496,142.23,142.21,0.04709869]
[1742898682158,401.15715695,142.34,142.2,25.44]
[1742898682365,29.10755695,142.34,142.23,25.44]
[1742898682667,7.0295,142.24,142.23,25.44]
[1742898682864,13.10067133,142.29,142.17,597.08]
[1742898683170,14.0588,142.25,142.12,25.44]
[1742898683357,14.0588,142.25,142.17,0.04845675]
[1742898683561,0.05254639,142.2,142.17,0.04845675]
[1742898684161,7.08434639,142.2,142.17,7.08115675]
[1742898684561,0.05254639,142.2,142.17,0.04845675]
[1742898685259,7.0324,142.18,142.17,0.04845675]
[1742898685770,7.0322,142.19,142.17,0.04845675]
[1742898685970,0.05254639,142.2,142.17,0.04845675]
[1742898687868,14.0544,142.29,142.19,25.44]
[1742898688067,13.10067133,142.32,142.19,25.44]
[1742898688268,21.0759,142.33,142.19,25.44]
[1742898688471,7.0293,142.25,142.22,7.0302]
[1742898689067,7.0819402,142.25,142.22,7.08226414]
[1742898689566,7.0819402,142.25,142.23,7.0299]
[1742898689766,7.0819402,142.25,142.22,0.05206414]
[1742898690076,7.0296,142.24,142.22,0.05206414]
[1742898690573,7.03,142.23,142.22,0.05206414]
[1742898691874,7.0297,142.24,142.22,0.05206414]
[1742898692069,7.0297,142.24,142.22,25.49206414]
[1742898692972,7.03,142.23,142.22,25.49206414]
[1742898696277,7.0298,142.24,142.22,25.49206414]
[1742898696568,7.03,142.23,142.22,25.49206414]
[1742898696764,0.0526402,142.25,142.22,25.49206414]
[1742898697175,7.0820402,142.25,142.22,32.52226414]
[1742898697472,0.0526402,142.25,142.22,25.49206414]
[1742898698273,7.0295,142.24,142.22,25.49206414]
[1742898698776,7.0818402,142.25,142.22,25.49206414]
[1742898699877,7.0818402,142.25,142.22,32.52246414]
[1742898700075,0.0526402,142.25,142.22,32.52246414]
[1742898700775,0.0526402,142.25,142.22,25.49206414]
[1742898701374,7.0818402,142.25,142.22,32.52226414]
[1742898702177,0.0526402,142.25,142.22,25.49206414]
[1742898703074,7.0299,142.24,142.22,25.49206414]
[1742898703272,0.0526402,142.25,142.22,25.49206414]
[1742898703474,7.03,142.23,142.22,0.05206414]
[1742898706882,1.22375778,142.34,142.22,25.47206414]
[1742898707178,50.18065695,142.35,142.24,7.0292]
[1742898707384,7.0273,142.29,142.22,25.42]
[1742898707770,7.0276,142.28,142.25,7.0286]
[1742898707976,0.0527565,142.27,142.25,7.0286]
[1742898708175,50.18065695,142.35,142.25,7.0286]
[1742898708478,0.0462824,142.27,142.25,7.07507123]
[1742898708676,7.027,142.29,142.25,7.0286]
[1742898708869,0.0461913,142.27,142.25,7.08054471]
[1742898709874,0.0461913,142.27,142.26,7.0285]
[1742898711074,7.027,142.29,142.26,7.0285]
[1742898711377,21.0731,142.35,142.27,7.0278]
[1742898711770,7.0269,142.3,142.27,7.0278]
[1742898712176,7.07645035,142.3,142.27,7.07222853]
[1742898712572,7.0271,142.29,142.27,7.07222853]
[1742898713275,7.0271,142.29,142.27,0.04442853]
[1742898714282,7.0275,142.28,142.27,0.04442853]
[1742898715982,7.0275,142.28,142.27,2.853e-05]
[1742898716178,11.99997147,142.27,142.15,35.85092461]
[1742898716478,13.10067133,142.25,142.15,28.81712461]
[1742898716686,7.0334,142.16,142.15,28.81712461]
[1742898716886,14.059,142.24,142.15,28.81712461]
[1742898717280,0.04686571,142.21,142.18,0.04625825]
[1742898717972,7.0319,142.19,142.18,0.04625825]
[1742898718982,7.0319,142.19,142.18,5.825e-05]
[1742898726190,0.04686571,142.21,142.18,5.825e-05]
[1742898726385,0.04686571,142.21,142.18,7.03235825]
[1742898726783,7.07806571,142.21,142.18,7.03235825]
[1742898727784,7.0315,142.2,142.18,7.03235825]
[1742898727990,7.0315,142.2,142.18,5.825e-05]
[1742898728990,7.0315,142.2,142.18,7.03245825]
[1742898729485,7.0315,142.2,142.18,5.825e-05]
[1742898731888,7.0315,142.2,142.18,7.03245825]
[1742898732291,7.07796571,142.21,142.18,7.03245825]
[1742898732688,0.04686571,142.21,142.18,5.825e-05]
[1742898733083,0.04686571,142.21,142.2,7.0315]
[1742898733388,0.04686571,142.21,142.18,5.825e-05]
[1742898734091,7.07816571,142.21,142.18,5.825e-05]
[1742898734497,7.0315,142.2,142.18,7.03225825]
[1742898734693,0.04686571,142.21,142.18,5.825e-05]
[1742898735593,7.0319,142.19,142.18,5.825e-05]
[1742898739497,7.0354,142.12,142.1,25.44]
[1742898739897,7.0362,142.11,142.08,231.92]
[1742898740197,7.0362,142.11,142.08,257.36]
[1742898740702,7.08823212,142.11,142.08,32.52880601]
[1742898740897,0.05203212,142.11,142.08,0.05180601]
[1742898741602,7.0369,142.09,142.08,0.05180601]
[1742898743894,0.05203212,142.11,142.08,0.05180601]
[1742898744700,0.05203212,142.11,142.09,7.0366]
[1742898745507,0.05203212,142.11,142.1,7.0364]
[1742898746005,14.0632,142.2,142.11,7.0355]
[1742898746309,14.0632,142.2,142.1,25.44]
[1742898746499,7.0342,142.15,142.1,25.44]
[1742898746699,7.0342,142.15,142.12,7.0351]
[1742898747017,7.0342,142.15,142.1,25.44]
[1742898747018,7.0337,142.16,142.1,25.44]
[1742898747207,0.04937002,142.15,142.13,25.44]
[1742898747414,7.0327,142.18,142.13,25.44]
[1742898747606,0.04611555,142.15,142.13,25.48619844]
[1742898747907,14.0593,142.24,142.15,7.0338]
[1742898748109,7.0327,142.18,142.15,7.0338]
[1742898748310,14.0593,142.24,142.18,0.04552547]
[1742898748509,7.0333,142.17,142.14,7.0341]
[1742898748911,7.08600338,142.17,142.14,7.08444513]
[1742898749104,7.0334,142.16,142.14,0.05034513]
[1742898749310,0.05270338,142.17,142.14,0.05034513]
[1742898749905,7.0339,142.15,142.14,0.05034513]
[1742898751109,7.0362,142.11,142.09,25.44]
[1742898751314,14.0643,142.19,142.09,25.44]
[1742898751711,7.0362,142.11,142.09,25.44]
[1742898752220,0.0467344,142.11,142.09,0.04742482]
[1742898752817,7.0368,142.1,142.09,0.04742482]
[1742898764016,0.0467344,142.11,142.09,0.04742482]
[1742898764418,7.0828344,142.11,142.09,0.04742482]
[1742898764619,0.0467344,142.11,142.09,0.04742482]
[1742898765023,7.0364,142.1,142.09,0.04742482]
[1742898765320,0.0467344,142.11,142.09,0.04742482]
[1742898765619,7.0828344,142.11,142.09,0.04742482]
[1742898765811,0.0467344,142.11,142.09,0.04742482]
[1742898766014,0.0467344,142.11,142.09,7.08402482]
[1742898766623,0.0467344,142.11,142.1,7.0364]
[1742898768524,14.0619,142.22,142.13,7.0349]
[1742898768716,7.0342,142.15,142.13,7.0349]
[1742898768918,7.0342,142.15,142.12,7.035]
[1742898769421,7.0345,142.14,142.12,7.035]
[1742898769621,7.0345,142.14,142.12,7.08220089]
[1742898769819,0.05211314,142.15,142.12,0.04720089]
[1742898770319,7.0349,142.13,142.12,0.04720089]
[1742898772932,7.0349,142.13,142.12,8.9e-07]
[1742898784338,7.0378,142.08,142.05,25.44]
[1742898784545,8.38700954,142.16,142.04,257.54]
[1742898785338,8.38700954,142.14,142.04,232.1]
[1742898785530,8.38700954,142.14,142.09,0.04915985]
[1742898785735,0.05168055,142.1,142.09,0.04915985]
[1742898785940,7.0364,142.1,142.09,0.04915985]
[1742898787041,7.0364,142.1,142.09,5.985e-05]
[1742898787243,0.05051355,142.11,142.02,25.44]
[1742898787441,8.38700954,142.12,142.03,7.0396]
[1742898787740,7.0391,142.05,142.02,25.44]
[1742898788239,14.0719,142.11,142.02,32.4801]
[1742898788435,7.0396,142.04,142.02,32.52501011]
[1742898788631,7.09044836,142.04,142.02,32.53165411]
[1742898788840,7.09044836,142.04,142.02,7.09165411]
[1742898789442,0.05084836,142.04,142.02,7.09165411]
[1742898790940,0.05084836,142.04,142.02,0.05155411]
[1742898791337,7.0399,142.03,142.02,0.05155411]
[1742898796044,0.05084836,142.04,141.95,365.0]
[1742898796244,8.38700954,142.06,141.95,7.0436]
[1742898796444,8.38700954,142.06,141.94,25.44]
[1742898796939,7.0421,141.99,141.94,25.44]
[1742898797343,7.0421,141.99,141.95,7.08968675]
[1742898797540,0.05186387,141.98,141.95,7.08968675]
[1742898797746,0.05186387,141.98,141.95,0.04628675]
[1742898798044,0.05186387,141.98,141.97,7.0428]
[1742898798445,0.05186387,141.98,141.96,7.0431]
[1742898798837,0.05186387,141.98,141.95,0.04628675]
[1742898799444,0.05186387,141.98,141.96,7.0433]
[1742898799643,0.05186387,141.98,141.95,0.04628675]
[1742898800147,0.05186387,141.98,141.96,7.0433]
[1742898801244,0.05186387,141.98,141.97,7.0428]
[1742898802350,0.05186387,141.98,141.96,7.0431]
[1742898802648,7.09426387,141.98,141.96,7.0431]
[1742898803047,7.09426387,141.98,141.95,7.08988675]
[1742898805451,7.09426387,141.98,141.96,7.0432]
[1742898805650,0.05186387,141.98,141.96,7.0432]
[1742898806051,0.05186387,141.98,141.95,0.04628675]
[1742898806247,0.05186387,141.98,141.95,25.50628675]
[1742898807153,0.05186387,141.98,141.97,7.0428]
[1742898808455,0.05186387,141.98,141.96,7.0431]
[1742898808657,7.09456387,141.98,141.95,25.50628675]
[1742898809351,0.05186387,141.98,141.95,0.04628675]
[1742898810357,7.0433,141.96,141.95,0.04628675]
[1742898819262,0.05186387,141.98,141.95,0.04628675]
[1742898819663,0.05186387,141.98,141.95,7.08988675]
[1742898819864,7.09466387,141.98,141.95,7.08988675]
[1742898820062,0.05186387,141.98,141.95,7.08988675]
[1742898820259,7.0432,141.97,141.95,7.08988675]
[1742898820462,0.05186387,141.98,141.96,7.0433]
[1742898821062,7.09456387,141.98,141.96,7.0433]
[1742898821259,0.05186387,141.98,141.96,7.0433]
[1742898821666,7.0428,141.97,141.95,7.08988675]
[1742898822163,0.05186387,141.98,141.95,0.04628675]
[1742898822465,7.09446387,141.98,141.95,0.04628675]
[1742898823656,7.0429,141.97,141.95,0.04628675]
[1742898824057,7.0429,141.97,141.95,7.08978675]
[1742898824966,7.0429,141.97,141.95,0.04628675]
[1742898825866,7.0433,141.96,141.95,0.04628675]
[1742898839668,7.0433,141.96,141.95,8.675e-05]
[1742898840075,7.0466,141.9,141.88,7.0471]
[1742898840274,14.0865,141.97,141.86,40.28776398]
[1742898840474,7.0462,141.91,141.89,7.0468]
[1742898840674,14.0865,141.97,141.89,7.0468]
[1742898840870,14.0826,142.01,141.9,25.46]
[1742898841080,7.08934719,141.97,141.94,0.04791163]
[1742898841880,0.04624719,141.97,141.95,7.0438]
[1742898843991,7.08914719,141.97,141.95,7.0438]
[1742898844896,0.04624719,141.97,141.96,7.0433]
[1742898845196,0.04624719,141.97,141.94,0.04791163]
[1742898845495,7.08934719,141.97,141.95,7.0436]
[1742898845687,0.04624719,141.97,141.94,0.04791163]
[1742898845994,7.08924719,141.97,141.95,7.0435]
[1742898846195,0.04624719,141.97,141.94,0.04791163]
[1742898847100,0.04624719,141.97,141.96,7.0433]
[1742898847893,0.04624719,141.97,141.94,0.04791163]
[1742898847894,0.04624719,141.97,141.95,7.0436]
[1742898848794,0.04624719,141.97,141.95,7.0434]
[1742898849395,7.08934719,141.97,141.95,7.0434]
[1742898849698,0.04624719,141.97,141.94,7.09201163]
[1742898850303,0.04624719,141.97,141.95,7.0438]
[1742898851100,7.08934719,141.97,141.95,7.0438]
[1742898852594,0.04624719,141.97,141.96,7.0433]
[1742898854701,0.04624719,141.97,141.94,0.04791163]
[1742898854702,7.08904719,141.97,141.95,7.0436]
[1742898858003,0.04624719,141.97,141.95,7.0436]
[1742898858204,0.04624719,141.97,141.96,7.0433]
[1742898859000,7.08904719,141.97,141.95,7.0436]
[1742898860191,7.0433,141.96,141.94,7.09201163]
[1742898860395,0.04624719,141.97,141.94,0.04791163]
[1742898860802,7.08934719,141.97,141.95,7.0438]
[1742898861302,0.04624719,141.97,141.96,7.0433]
[1742898861894,7.08914719,141.97,141.95,7.0436]
[1742898863805,7.0433,141.96,141.94,7.09201163]
[1742898866107,7.08924719,141.97,141.95,7.0438]
[1742898866308,8.38700954,142.07,141.96,25.46]
[1742898866511,126.97291959,142.09,141.96,25.46]
[1742898866711,106.72770881,142.09,141.99,25.46]
[1742898867005,106.72770881,142.09,142.02,25.46]
[1742898867412,7.0381,142.07,142.04,7.039]
[1742898867605,0.05365393,142.07,142.04,7.08910709]
[1742898868106,0.05365393,142.07,142.04,0.05010709]
[1742898868710,7.0389,142.05,142.04,0.05010709]
[1742898870510,0.05365393,142.07,142.04,0.05010709]
[1742898871605,7.09185393,142.07,142.05,7.0389]
[1742898873510,8.38700954,142.16,142.05,25.44]
[1742898873712,8.38700954,142.17,142.05,25.44]
[1742898874109,7.036,142.11,142.09,7.0368]
[1742898874412,8.38700954,142.17,142.05,25.44]
[1742898874615,8.38700954,142.16,142.05,25.44]
[1742898874816,7.0367,142.1,142.05,25.44]
[1742898875313,0.0527846,142.09,142.07,7.0376]
[1742898875515,7.0897846,142.09,142.06,0.05250195]
[1742898876413,7.0897846,142.09,142.06,7.09080195]
[1742898876614,7.0897846,142.09,142.06,0.05250195]
[1742898877119,7.0375,142.08,142.06,0.05250195]
[1742898877617,0.0527846,142.09,142.06,0.05250195]
[1742898877817,7.0379,142.07,142.06,0.05250195]
[1742898878012,0.0527846,142.09,142.06,0.05250195]
[1742898878911,7.0379,142.07,142.06,0.05250195]
[1742898888227,0.0527846,142.09,142.06,0.05250195]
[1742898888435,0.0527846,142.09,142.07,7.0376]
[1742898889129,0.0527846,142.09,142.06,0.05250195]
[1742898889435,7.0379,142.07,142.06,0.05250195]
[1742898893236,7.0379,142.07,142.06,1.95e-06]
[1742898899841,8.43979414,142.09,141.95,232.24]
[1742898900043,8.38700954,142.07,141.97,25.42]
[1742898900742,8.38700954,142.07,141.98,7.0421]
[1742898900944,0.05362976,142.03,142.01,0.04519615]
[1742898901346,7.0404,142.02,142.01,0.04519615]
[1742898902048,7.0404,142.02,142.01,9.615e-05]
[1742898905943,0.05362976,142.03,142.01,9.615e-05]
[1742898906143,22.45820954,142.12,142.01,25.44009615]
[1742898906348,29.10755695,142.14,142.01,25.44]
[1742898906543,7.0367,142.1,142.04,25.44]
[1742898906949,29.10755695,142.14,142.04,25.44]
[1742898907351,0.0450622,142.1,142.08,0.04978597]
[1742898908050,7.037,142.09,142.08,0.04978597]
[1742898910055,0.0450622,142.1,142.08,0.04978597]
[1742898910955,7.0369,142.09,142.08,0.04978597]
[1742898918659,7.0369,142.09,142.08,8.597e-05]
[1742898920868,7.0815622,142.1,142.08,7.03748597]
[1742898921162,7.0815622,142.1,142.08,8.597e-05]
[1742898921163,0.0450622,142.1,142.08,8.597e-05]
[1742898921365,7.0351,142.13,142.1,7.0359]
[1742898921670,8.38700954,142.19,142.1,7.0359]
[1742898921868,8.38700954,142.19,142.09,25.42]
[1742898922070,7.036,142.11,142.09,32.4567]
[1742898922765,7.08100848,142.11,142.09,32.50403892]
[1742898923068,7.08100848,142.11,142.09,25.46733892]
[1742898923366,0.04500848,142.11,142.09,25.46733892]
[1742898924169,7.0364,142.1,142.09,25.46733892]
[1742898924870,7.0364,142.1,142.09,0.04733892]
[1742898925068,0.04500848,142.11,142.09,0.04733892]
[1742898925569,0.04500848,142.11,142.09,7.08393892]
[1742898926069,0.04500848,142.11,142.09,0.04733892]
[1742898926870,0.04500848,142.11,142.1,7.0364]
[1742898928366,216.2552221,142.31,142.11,25.42]
[1742898928572,8.38700954,142.24,142.11,25.42]
[1742898928772,8.38700954,142.24,142.14,25.42]
[1742898929180,7.0332,142.17,142.14,25.42]
[1742898929474,7.0332,142.17,142.15,7.0339]
[1742898929868,7.08200398,142.17,142.15,7.0339]
[1742898930477,0.04880398,142.17,142.15,7.0339]
[1742898931676,0.04880398,142.17,142.14,25.46803965]
[1742898932874,7.08200398,142.17,142.15,7.0337]
[1742898933577,7.08190398,142.17,142.14,32.50203965]
[1742898934178,7.08190398,142.17,142.15,7.0339]
[1742898936474,0.04880398,142.17,142.15,7.0339]
[1742898937380,7.08210398,142.17,142.14,32.50233965]
[1742898939680,7.08210398,142.17,142.15,7.0338]
[1742898940576,0.04880398,142.17,142.16,7.0334]
[1742898940880,14.0583,142.25,142.17,25.4]
[1742898941180,7.0313,142.21,142.18,7.0324]
[1742898941680,7.0317,142.2,142.17,25.4]
[1742898941881,7.0317,142.2,142.18,0.0477794]
[1742898942983,0.04932728,142.21,142.18,0.0477794]
[1742898942984,7.0319,142.19,142.18,0.0477794]
[1742898947583,7.0319,142.19,142.18,7.94e-05]
[1742898958991,7.04,142.19,142.07,597.18]
[1742898959188,8.38700954,142.17,142.08,25.4]
[1742898959790,7.0372,142.09,142.08,25.4]
[1742898960293,7.0374,142.08,142.07,232.2267799]
[1742898960483,14.0701,142.13,142.05,107.57640626]
[1742898960688,0.04533838,142.09,142.06,38.59872233]
[1742898960889,7.0379,142.07,142.06,38.59872233]
[1742898963387,7.0379,142.07,142.06,0.04656007]
[1742898963791,7.0375,142.08,142.06,0.04656007]
[1742898963991,0.04533838,142.09,142.06,0.04656007]
[1742898964792,0.04533838,142.09,142.06,7.08466007]
[1742898966191,0.04533838,142.09,142.06,0.04656007]
[1742898967396,0.04533838,142.09,142.08,7.0374]
[1742898967596,0.04533838,142.09,142.06,0.04656007]
[1742898968998,0.04533838,142.09,142.08,7.0374]
[1742898973106,8.38700954,142.17,142.09,7.0368]
[1742898973510,7.036,142.11,142.09,7.0368]
[1742898974209,7.08588937,142.11,142.09,7.08683377]
[1742898974510,0.04988937,142.11,142.1,7.0364]
[1742898974712,8.38700954,142.19,142.09,0.05003377]
[1742898974911,8.38700954,142.19,142.08,25.4]
[1742898975207,8.38700954,142.19,142.12,7.0354]
[1742898975901,0.04529739,142.17,142.14,0.04725622]
[1742898977111,7.0339,142.15,142.14,0.04725622]
[1742898977609,7.0339,142.15,142.14,5.622e-05]
[1742898983113,14.069,142.14,142.04,365.0]
[1742898983319,8.38700954,142.15,142.04,25.4]
[1742898983516,8.38700954,142.13,142.0,635.63216226]
[1742898983705,8.38700954,142.12,142.0,635.63216226]
[1742898984016,8.38700954,142.12,142.01,25.4]
[1742898984216,7.0392,142.05,142.02,7.04]
[1742898984411,14.073,142.1,142.02,7.04]
[1742898984715,0.04787994,142.05,142.02,7.09016911]
[1742898984905,7.0395,142.04,142.02,7.09016911]
[1742898985506,0.04787994,142.05,142.02,0.05016911]
[1742898986110,0.04787994,142.05,142.02,7.09056911]
[1742898986111,7.0394,142.04,142.02,7.09056911]
[1742898986519,0.04787994,142.05,142.02,7.09056911]
[1742898986720,7.08697994,142.05,142.02,7.09056911]
[1742898987016,0.04787994,142.05,142.02,0.05016911]
[1742898987620,14.0695,142.14,142.04,25.4]
[1742898987814,8.38700954,142.18,142.07,25.4]
[1742898988319,22.45260954,142.18,142.1,7.0361]
[1742898988518,22.45260954,142.18,142.07,25.4]
[1742898988918,0.05030826,142.14,142.11,0.05229053]
[1742898989119,7.0354,142.12,142.11,0.05229053]
[1742898991923,7.0354,142.12,142.11,9.053e-05]
[1742898992616,7.039,142.05,142.03,372.0398]
[1742898992920,1.22483458,142.2,142.03,372.0398]
[1742898992921,8.38700954,142.12,142.03,25.4]
[1742898993523,14.0721,142.11,142.03,25.4]
[1742898993914,0.05006594,142.08,142.06,0.05165868]
[1742898994717,7.0379,142.07,142.06,0.05165868]
[1742898996421,7.0379,142.07,142.06,5.868e-05]
[1742898996722,7.0417,142.0,141.98,25.4]
[1742898997725,7.08747666,142.0,141.98,25.44788188]
[1742898998419,7.08747666,142.0,141.98,32.49018188]
[1742898999234,0.04577666,142.0,141.98,32.49018188]
[1742898999433,0.04577666,142.0,141.99,7.0419]
[1742898999834,13.11227877,142.1,141.98,25.44788188]
[1742898999835,14.0723,142.11,141.98,25.44788188]
[1742899000035,14.0723,142.11,142.02,7.0401]
[1742899000231,7.0392,142.05,142.02,7.0401]
[1742899001036,0.0476014,142.05,142.02,0.04788426]
[1742899001428,7.04,142.03,142.02,0.04788426]
[1742899001931,7.0417,142.0,141.97,7.0425]
[1742899003032,7.08794508,142.0,141.97,7.09172718]
[1742899003735,7.08794508,142.0,141.98,7.0423]
[1742899004938,7.08794508,142.0,141.97,32.49182718]
[1742899005132,7.0421,141.99,141.97,32.49182718]
[1742899005734,7.08784508,142.0,141.97,32.49182718]
[1742899005934,7.08784508,142.0,141.98,7.0423]
[1742899007538,7.08784508,142.0,141.99,7.0419]
[1742899007539,0.04624508,142.0,141.99,7.0419]
[1742899007936,27.18387877,142.12,141.97,25.44922718]
[1742899008238,27.18387877,142.12,142.03,7.0397]
[1742899008433,27.18387877,142.12,142.0,25.4]
[1742899008634,27.18387877,142.12,142.02,7.04]
[1742899008635,7.0391,142.05,142.02,7.04]
[1742899009138,7.08841496,142.05,142.02,7.09004593]
[1742899010237,7.08841496,142.05,142.03,7.0397]
[1742899010630,0.04931496,142.05,142.03,7.0397]
[1742899011641,7.08821496,142.05,142.03,7.0397]
[1742899012840,0.04931496,142.05,142.04,7.0394]
[1742899013243,1.22533054,142.14,142.03,25.4]
[1742899013444,27.17967877,142.16,142.07,7.0376]
[1742899013933,7.0371,142.09,142.07,7.0376]
[1742899014333,1.22483458,142.18,142.02,14.0807]
[1742899014634,56.28343572,142.2,142.07,0.05123309]
[1742899014635,43.17115695,142.2,142.07,0.05123309]
[1742899014834,8.38347097,142.19,142.1,7.036]
[1742899015039,7.0352,142.13,142.1,7.036]
[1742899015438,8.38347097,142.19,142.1,7.036]
[1742899015639,8.38347097,142.18,142.06,25.4]
[1742899015835,0.04887812,142.16,142.13,0.05351614]
[1742899016436,7.0344,142.14,142.13,0.05351614]
[1742899018447,7.0344,142.14,142.13,1.614e-05]
[1742899018848,20.14212484,142.14,142.03,25.4]
[1742899019046,13.10212484,142.14,142.03,25.4]
[1742899019246,7.0394,142.04,142.03,25.4]
[1742899019645,14.0701,142.13,142.03,25.4]
[1742899019840,7.0393,142.05,142.03,25.4]
[1742899020246,0.04568695,142.05,142.03,25.45177372]
[1742899020642,7.08478695,142.05,142.03,25.45177372]
[1742899020842,7.08478695,142.05,142.03,0.05177372]
[1742899020843,0.04568695,142.05,142.03,0.05177372]
[1742899021343,7.0394,142.04,142.03,0.05177372]